bitfinex-derivatives/quotes_ETHF0:USTF0_20240920
["timestamp","ask_amount","ask_price","bid_price","bid_amount"]
[1726867620967,2.32555921,2550.6,2550.3,0.39204]
[1726867621374,2.32555921,2550.6,2550.4,0.39203]
[1726867621979,0.7841,2550.6,2550.4,0.39203]
[1726867622174,0.7841,2550.6,2550.3,0.39204]
[1726867623173,1.1761,2550.6,2550.3,0.39204]
[1726867623372,0.7841,2550.6,2550.2,3.2078]
[1726867623876,1.1761,2550.6,2550.3,0.39203]
[1726867624078,0.7841,2550.6,2550.4,0.39202]
[1726867624285,1.54145921,2550.8,2550.4,2.787]
[1726867624580,1.55876,2550.9,2550.6,0.39199]
[1726867624779,1.1668,2550.9,2550.6,0.39199]
[1726867625384,1.55877,2550.9,2550.5,4.4104]
[1726867625578,1.55877,2550.9,2550.6,0.392]
[1726867626884,0.39196,2550.9,2550.6,0.39199]
[1726867627185,0.39196,2550.9,2550.6,0.392]
[1726867628674,0.39196,2550.9,2550.7,0.39197]
[1726867629272,1.1628,2551.0,2550.5,4.4104]
[1726867629479,1.93341921,2550.9,2550.7,0.39198]
[1726867630085,0.39196,2550.9,2550.7,0.39198]
[1726867637681,0.39197,2550.8,2550.7,0.39198]
[1726867639684,0.39196,2550.9,2550.7,0.39198]
[1726867639885,0.39197,2550.8,2550.7,0.39198]
[1726867641684,0.39197,2550.8,2550.6,0.39199]
[1726867642080,0.3953,2550.7,2550.6,0.39199]
[1726867649183,0.3953,2550.7,2550.3,0.7809]
[1726867649398,0.3953,2550.7,2550.3,0.39204]
[1726867649399,0.39202,2550.5,2550.3,0.39204]
[1726867649787,0.7821,2550.6,2550.3,0.39204]
[1726867649788,0.39,2550.4,2550.3,0.39204]
[1726867651187,0.39,2550.4,2550.2,3.5925]
[1726867651389,0.39,2550.4,2550.2,0.3847]
[1726867651894,0.39,2550.4,2550.3,0.39205]
[1726867653488,0.39,2550.4,2550.3,1.41224848]
[1726867653799,0.39,2550.4,2550.3,1.02019848]
[1726867654001,0.39,2550.4,2550.3,1.41224848]
[1726867654300,0.39,2550.4,2550.3,3.20388222]
[1726867654497,0.39,2550.4,2550.3,1.6735845]
[1726867654697,0.39,2550.4,2550.3,2.69764953]
[1726867655002,0.39,2550.4,2550.3,1.6735845]
[1726867655191,0.39,2550.4,2550.3,2.6976401]
[1726867655389,0.39,2550.4,2550.3,3.20418589]
[1726867656593,0.78203,2550.4,2550.3,2.81213589]
[1726867656795,0.39,2550.4,2550.3,2.69823619]
[1726867657102,0.39,2550.4,2550.3,1.41639802]
[1726867657695,0.39,2550.4,2550.3,2.69835873]
[1726867658095,0.39,2550.4,2550.3,1.67401071]
[1726867658802,7.33888106,2550.4,2550.1,1.02463893]
[1726867658999,0.39206,2550.2,2550.1,1.02463893]
[1726867659204,0.39208,2550.1,2550.0,1.02463893]
[1726867659403,0.39209,2550.0,2549.9,1.02463893]
[1726867659700,0.39209,2550.0,2549.9,2.30721738]
[1726867659907,0.39209,2550.0,2549.9,1.28257845]
[1726867660297,0.39209,2550.0,2549.9,1.28252609]
[1726867660493,1.57229,2550.1,2549.9,1.28252609]
[1726867660693,1.57229,2550.1,2550.0,1.02487542]
[1726867660901,1.57229,2550.1,2549.9,1.02487542]
[1726867662408,0.39209,2550.0,2549.9,1.02487542]
[1726867662697,1.57229,2550.1,2549.9,1.02487542]
[1726867662902,0.39209,2550.0,2549.9,1.02487542]
[1726867663099,1.1802,2550.1,2549.8,1.02487542]
[1726867663298,0.39211,2549.9,2549.8,1.02487542]
[1726867663494,0.39211,2549.9,2549.7,7.39477542]
[1726867663804,0.3725,2549.8,2549.7,7.78640262]
[1726867664002,0.3725,2549.8,2549.7,9.57424678]
[1726867664204,0.3725,2549.8,2549.7,8.04394906]
[1726867664505,0.3725,2549.8,2549.7,9.06810041]
[1726867665301,0.3725,2549.8,2549.7,7.78619135]
[1726867666105,0.3725,2549.8,2549.7,9.06748518]
[1726867666404,0.3725,2549.8,2549.7,7.39405135]
[1726867667202,0.3725,2549.8,2549.7,4.18625135]
[1726867667707,0.3725,2549.8,2549.7,3.1621]
[1726867668109,0.3725,2549.8,2549.7,4.18625135]
[1726867668403,0.3725,2549.8,2549.7,0.3811]
[1726867669701,0.76462,2549.8,2549.7,0.3811]
[1726867670307,0.3725,2549.8,2549.7,0.3811]
[1726867670699,0.76462,2549.8,2549.7,0.3811]
[1726867674803,4.68622,2549.8,2549.7,0.3811]
[1726867676108,0.39214,2549.7,2549.5,0.39217]
[1726867676412,1.20304,2549.7,2549.5,0.80296]
[1726867676804,1.20304,2549.7,2549.5,0.4108]
[1726867677614,0.39215,2549.6,2549.5,0.4108]
[1726867677910,1.20305,2549.7,2549.5,0.4108]
[1726867678304,0.39215,2549.6,2549.5,0.4108]
[1726867678606,1.20305,2549.7,2549.5,0.4108]
[1726867680010,0.39215,2549.6,2549.5,0.4108]
[1726867685806,4.31455,2549.6,2549.5,0.4108]
[1726867686022,0.39222,2549.2,2549.1,0.367]
[1726867686312,0.39222,2549.2,2549.1,0.3832]
[1726867686713,1.35563,2549.5,2548.8,0.8024]
[1726867686714,0.39224,2549.1,2548.8,0.8024]
[1726867686914,0.39224,2549.1,2548.9,0.3832]
[1726867686915,0.76745,2549.0,2548.9,0.3832]
[1726867687713,0.3752,2549.0,2548.9,0.3832]
[1726867690223,0.76745,2549.0,2548.9,0.3832]
[1726867691520,0.39226,2548.9,2548.6,0.367]
[1726867691717,0.39226,2548.9,2548.6,0.3914]
[1726867694124,0.39226,2548.9,2548.6,0.78371]
[1726867696325,0.3752,2549.0,2548.6,0.3914]
[1726867696625,0.76746,2549.0,2548.7,0.39229]
[1726867697420,0.39226,2548.9,2548.7,0.39229]
[1726867698619,0.39226,2548.9,2548.6,0.7837]
[1726867700324,0.3752,2549.0,2548.6,0.7837]
[1726867700325,0.76745,2549.0,2548.7,0.39229]
[1726867700830,0.76745,2549.0,2548.8,0.3745]
[1726867701325,0.76745,2549.0,2548.9,0.4092]
[1726867701721,4.69065,2549.0,2548.9,0.4092]
[1726867703734,0.76745,2549.0,2548.9,0.4092]
[1726867704222,0.39225,2549.0,2548.9,0.8056]
[1726867704421,4.31545,2549.0,2548.9,0.8056]
[1726867704823,0.39225,2549.0,2548.9,0.8056]
[1726867705023,0.39224,2549.1,2548.9,1.19786]
[1726867705217,0.3791,2549.2,2548.9,1.19786]
[1726867705218,0.39225,2549.0,2548.9,0.8056]
[1726867706524,0.3791,2549.2,2548.9,0.8056]
[1726867706829,0.39225,2549.0,2548.9,0.8056]
[1726867710722,0.39224,2549.1,2548.9,1.19786]
[1726867710919,0.3791,2549.2,2549.0,0.39225]
[1726867712325,4.74984233,2549.6,2548.9,6.9774]
[1726867712521,0.39217,2549.5,2549.3,0.39219]
[1726867712726,0.39217,2549.5,2549.4,1.1813]
[1726867715833,3.59996,2549.6,2549.4,1.57349]
[1726867716034,0.39217,2549.5,2549.4,1.57349]
[1726867721532,0.39217,2549.5,2549.4,1.1813]
[1726867727540,0.39217,2549.5,2549.4,1.57349]
[1726867727841,0.39219,2549.4,2549.3,0.39219]
[1726867731239,0.3922,2549.3,2549.2,1.59031]
[1726867736448,0.7694,2549.4,2549.3,0.3922]
[1726867736650,0.3735,2549.5,2549.4,0.39219]
[1726867736651,0.39217,2549.5,2549.4,0.39219]
[1726867737245,0.39217,2549.5,2549.4,0.39217]
[1726867737451,0.3854,2549.6,2549.2,2.22225135]
[1726867737646,0.39218,2549.5,2549.2,2.22225135]
[1726867737851,0.3854,2549.6,2549.3,0.39219]
[1726867738051,1.92744233,2549.6,2549.3,0.39219]
[1726867738254,0.39219,2549.4,2549.3,0.39219]
[1726867739548,0.39218,2549.5,2549.4,0.39218]
[1726867739964,0.39218,2549.5,2549.4,4.31458]
[1726867740158,1.93421233,2549.6,2549.5,0.39217]
[1726867740462,1.54204233,2549.9,2549.7,0.39214]
[1726867740651,4.74984233,2550.0,2549.7,0.39214]
[1726867740857,4.74984233,2550.0,2549.6,1.19195]
[1726867740858,0.39212,2549.8,2549.6,1.19195]
[1726867741262,0.39212,2549.8,2549.6,2.21610135]
[1726867741558,0.39212,2549.8,2549.7,0.39214]
[1726867742961,0.77782,2549.9,2549.7,0.39214]
[1726867743764,0.39212,2549.8,2549.7,0.39214]
[1726867745861,0.77781,2549.9,2549.7,0.39214]
[1726867746963,0.3857,2549.9,2549.6,0.7998]
[1726867747171,0.39213,2549.8,2549.6,2.21609135]
[1726867747561,0.39213,2549.8,2549.7,0.39214]
[1726867749966,0.77782,2549.9,2549.7,0.39214]
[1726867750169,0.77781,2549.9,2549.7,0.39214]
[1726867750367,0.77781,2549.9,2549.6,0.7998]
[1726867750871,0.77781,2549.9,2549.7,0.39214]
[1726867751467,0.77781,2549.9,2549.8,0.39212]
[1726867752769,0.77781,2549.9,2549.7,0.39213]
[1726867753165,0.77781,2549.9,2549.8,0.39212]
[1726867755675,0.77781,2549.9,2549.7,0.39213]
[1726867756571,0.3857,2549.9,2549.8,0.39212]
[1726867762177,1.54204233,2550.1,2550.0,0.39209]
[1726867762466,1.54204233,2550.1,2550.0,4.31369]
[1726867762467,0.39209,2550.1,2550.0,4.31369]
[1726867763074,1.16237,2550.2,2550.0,4.31369]
[1726867763271,0.7703,2550.2,2550.0,0.39209]
[1726867763473,1.16236,2550.2,2550.1,0.79528]
[1726867763668,0.7703,2550.2,2550.1,0.79528]
[1726867764372,0.3748,2550.2,2550.1,0.79528]
[1726867764568,0.76686,2550.2,2550.1,0.79528]
[1726867764966,1.54204233,2550.7,2550.1,18.7344522]
[1726867765175,2.70854233,2551.0,2550.9,0.39195]
[1726867765469,1.1665,2551.0,2550.8,1.80196]
[1726867765666,0.7856,2551.0,2550.8,1.41]
[1726867765869,0.7856,2551.0,2550.9,0.39195]
[1726867765870,0.3856,2551.0,2550.9,0.39195]
[1726867766265,0.3856,2551.0,2550.8,1.80196]
[1726867767077,0.3856,2551.0,2550.9,0.39195]
[1726867767279,0.3856,2551.0,2550.8,1.80196]
[1726867767466,0.3856,2551.0,2550.9,0.39195]
[1726867768277,0.3856,2551.0,2550.8,1.80196]
[1726867770181,1.14572,2551.2,2550.9,0.39195]
[1726867770383,1.1408,2551.2,2550.9,0.39195]
[1726867770883,1.1408,2551.2,2551.0,0.39194]
[1726867771582,1.1408,2551.2,2550.9,0.39194]
[1726867772085,1.1408,2551.2,2551.0,0.39193]
[1726867772469,1.1408,2551.2,2551.1,0.4018]
[1726867783595,1.1408,2551.2,2551.1,0.79372]
[1726867787591,1.1408,2551.2,2551.1,3.2858]
[1726867787796,1.1408,2551.2,2551.1,0.79372]
[1726867787999,1.1408,2551.2,2551.1,3.67772]
[1726867796493,3.2078,2551.3,2551.2,0.39191]
[1726867803218,0.38966,2551.3,2551.2,16.81512966]
[1726867803404,0.38966,2551.3,2551.2,11.73956966]
[1726867803621,0.38966,2551.3,2551.2,4.31191]
[1726867803902,0.38966,2551.3,2551.2,7.19591]
[1726867804113,0.38966,2551.3,2550.8,1.02368275]
[1726867804412,0.38966,2551.3,2550.9,1.41]
[1726867804413,0.39193,2551.1,2550.9,1.41]
[1726867804600,0.4123,2551.0,2550.9,4.294]
[1726867804798,0.8218,2551.0,2550.9,1.41]
[1726867805000,0.8218,2551.0,2550.9,4.294]
[1726867805201,0.8218,2551.0,2550.7,1.41]
[1726867805396,0.39198,2550.8,2550.6,2.884]
[1726867805596,2.6252,2551.0,2550.5,3.2078]
[1726867805805,4.16724233,2551.0,2550.5,3.2078]
[1726867806104,0.39199,2550.7,2550.4,1.41]
[1726867806301,0.3865,2550.6,2550.4,4.68603]
[1726867806501,0.3767,2550.5,2550.4,4.68603]
[1726867806702,0.3767,2550.5,2550.4,4.294]
[1726867807307,0.3767,2550.5,2550.4,4.68603]
[1726867807495,0.3767,2550.5,2550.4,4.294]
[1726867808501,0.3767,2550.5,2550.4,5.31768275]
[1726867809301,0.3767,2550.5,2550.4,4.294]
[1726867809501,0.3767,2550.5,2550.4,5.31768275]
[1726867809709,0.3767,2550.5,2550.4,4.294]
[1726867809912,0.3767,2550.5,2550.4,5.31768275]
[1726867812416,0.76872,2550.5,2550.4,1.02368275]
[1726867812613,0.76872,2550.5,2550.3,3.92368275]
[1726867813305,0.3767,2550.5,2550.3,4.31573275]
[1726867814212,0.3767,2550.5,2550.3,5.72573275]
[1726867815612,0.3767,2550.5,2550.2,7.13148275]
[1726867815613,4.2975,2550.5,2550.2,7.13148275]
[1726867815813,0.378,2550.4,2550.2,7.52354275]
[1726867817414,0.378,2550.4,2550.3,1.02368275]
[1726867817611,0.378,2550.4,2550.3,1.41573275]
[1726867817920,3.9208,2550.4,2550.3,1.41573275]
[1726867818310,0.3767,2550.5,2550.3,1.41573275]
[1726867818516,0.3767,2550.5,2550.3,1.40408275]
[1726867818918,0.76872,2550.5,2550.3,1.40408275]
[1726867822621,0.76872,2550.5,2550.3,0.3804]
[1726867823820,0.39203,2550.4,2550.3,0.3804]
[1726867824027,5.7075,2550.5,2550.1,1.02368275]
[1726867824320,0.39205,2550.3,2550.0,3.6189]
[1726867825119,0.39204,2550.4,2550.0,4.01098]
[1726867825829,0.39204,2550.4,2550.0,4.01099]
[1726867826128,0.39204,2550.4,2550.0,5.42099]
[1726867826820,0.39203,2550.4,2550.0,5.42099]
[1726867828119,0.39205,2550.3,2550.0,5.42099]
[1726867828320,0.39204,2550.4,2550.0,5.42099]
[1726867828519,0.39205,2550.3,2550.0,2.21319]
[1726867828723,0.39205,2550.3,2550.0,5.42099]
[1726867830033,3.32874233,2550.5,2549.8,1.02368275]
[1726867830034,1.91874233,2550.5,2549.8,1.02368275]
[1726867830328,1.92854233,2550.6,2550.2,1.41]
[1726867830518,0.3865,2550.6,2550.3,0.3912]
[1726867830831,0.3865,2550.6,2550.5,0.39202]
[1726867831029,0.3809,2550.7,2550.5,0.39201]
[1726867831326,0.3809,2550.7,2550.4,5.007]
[1726867831533,0.77289,2550.7,2550.4,5.39902]
[1726867834138,1.54204233,2551.0,2550.6,1.41]
[1726867834324,0.39194,2551.0,2550.7,3.59978]
[1726867834633,0.39194,2551.0,2550.8,0.382]
[1726867835529,5.94184233,2551.3,2550.9,1.41]
[1726867835731,0.39191,2551.2,2550.9,1.80195]
[1726867840430,4.0253,2551.3,2550.9,1.41]
[1726867840639,3.2078,2551.3,2551.2,0.39191]
[1726867841139,3.2078,2551.3,2551.2,0.77371]
[1726867842138,3.2078,2551.3,2551.2,0.3818]
[1726867843235,3.2078,2551.3,2551.2,0.77371]
[1726867846741,3.2078,2551.3,2551.2,0.3818]
[1726867846939,3.2078,2551.3,2551.2,0.77371]
[1726867849238,3.59969,2551.3,2551.2,0.3818]
[1726867849445,3.2078,2551.3,2551.2,0.77371]
[1726867852039,3.59969,2551.3,2551.2,0.3818]
[1726867852832,3.59969,2551.3,2551.2,0.77371]
[1726867853542,3.2078,2551.3,2551.2,0.77371]
[1726867853839,3.59969,2551.3,2551.2,0.77371]
[1726867854144,0.39191,2551.2,2551.0,1.41]
[1726867854331,0.78021,2551.2,2551.0,1.8213]
[1726867855436,0.78021,2551.2,2551.1,0.39192]
[1726867855840,1.18861,2551.2,2551.1,0.39192]
[1726867858346,1.18861,2551.2,2551.0,1.8213]
[1726867858347,1.18862,2551.2,2551.0,1.80193]
[1726867858544,0.4012,2551.1,2551.0,1.80193]
[1726867860344,0.79312,2551.1,2551.0,2.952]
[1726867862348,0.79312,2551.1,2551.0,3.34394]
[1726867864870,0.4012,2551.1,2551.0,3.34394]
[1726867866461,0.79312,2551.1,2551.0,3.34394]
[1726867867662,0.4012,2551.1,2551.0,3.34394]
[1726867869270,4.74984233,2551.5,2551.0,2.952]
[1726867869569,4.74984233,2551.5,2551.3,1.41]
[1726867869570,1.1932,2551.4,2551.3,1.41]
[1726867869766,1.1932,2551.4,2551.3,1.80189]
[1726867869971,3.2078,2551.5,2551.4,0.39188]
[1726867870365,3.2078,2551.5,2551.4,0.77128]
[1726867870565,3.2078,2551.5,2551.4,0.3794]
[1726867875371,4.74984233,2551.5,2551.4,0.3794]
[1726867877472,3.5961,2551.5,2551.4,0.3794]
[1726867877784,5.13690777,2551.5,2551.4,0.3794]
[1726867879278,3.5961,2551.5,2551.4,0.3794]
[1726867880084,3.98796,2551.5,2551.4,0.3794]
[1726867881186,3.98796,2551.5,2551.4,3.1884]
[1726867881491,3.98796,2551.5,2551.4,2.809]
[1726867882186,0.39188,2551.4,2551.3,2.43368275]
[1726867882485,2.72491094,2551.4,2551.3,5.24268275]
[1726867884780,2.72491094,2551.4,2551.3,4.219]
[1726867885290,0.39189,2551.3,2551.2,1.02368275]
[1726867885586,0.39191,2551.2,2551.1,1.02368275]
[1726867885778,0.39191,2551.2,2551.0,1.53029772]
[1726867885779,0.39192,2551.1,2551.0,1.02368275]
[1726867885981,1.93398892,2551.1,2551.0,1.02368275]
[1726867886294,0.39194,2551.0,2550.9,1.02368275]
[1726867886481,0.39194,2551.0,2550.8,8.84245275]
[1726867886482,0.39195,2550.9,2550.8,8.84245275]
[1726867886681,1.93402099,2550.9,2550.8,10.12503926]
[1726867886991,1.54207099,2550.9,2550.8,8.45048275]
[1726867887184,0.39195,2550.9,2550.8,10.63161097]
[1726867887383,0.39195,2550.9,2550.8,10.12606447]
[1726867889387,0.39195,2550.9,2550.8,8.84352122]
[1726867889903,0.39195,2550.9,2550.8,10.12616424]
[1726867890583,0.39195,2550.9,2550.8,8.84352122]
[1726867890992,3.2078,2551.8,2551.3,0.97973]
[1726867891184,3.2078,2551.8,2551.7,2.82600222]
[1726867891691,3.2078,2551.8,2551.7,8.53003]
[1726867891892,3.2078,2551.8,2551.7,9.84749869]
[1726867892083,3.2078,2551.8,2551.7,9.55375407]
[1726867892283,3.2078,2551.8,2551.7,8.53003]
[1726867892487,3.2078,2551.8,2551.7,9.8474077]
[1726867892790,0.373,2552.2,2551.7,13.0551977]
[1726867892988,0.76476,2552.2,2552.1,1.41]
[1726867908294,0.373,2552.2,2552.1,1.41]
[1726867908490,0.76476,2552.2,2552.1,1.41]
[1726867913102,0.373,2552.2,2552.1,1.41]
[1726867913606,0.76476,2552.2,2552.1,1.41]
[1726867914707,0.76476,2552.2,2552.0,3.59958]
[1726867914906,0.76476,2552.2,2552.1,1.41]
[1726867917900,0.373,2552.2,2552.1,1.41]
[1726867918205,0.76476,2552.2,2552.1,1.41]
[1726867918507,0.373,2552.2,2552.1,1.80177]
[1726867919912,0.76476,2552.2,2552.1,1.41]
[1726867920509,0.373,2552.2,2552.1,1.80177]
[1726867920703,0.76476,2552.2,2552.1,1.41]
[1726867925904,0.76476,2552.2,2552.1,4.6178]
[1726867926705,0.76476,2552.2,2552.1,1.41]
[1726867926910,0.76476,2552.2,2552.1,4.6178]
[1726867929311,0.373,2552.2,2552.1,4.6178]
[1726867929510,0.76476,2552.2,2552.1,4.6178]
[1726867931307,0.373,2552.2,2552.1,5.00957]
[1726867931508,0.39174,2552.4,2552.1,8.5362]
[1726867931812,0.77374,2552.4,2552.3,1.41]
[1726867932513,0.382,2552.4,2552.3,1.80174]
[1726867935328,0.382,2552.4,2552.3,2.82509641]
[1726867936314,0.382,2552.4,2552.3,4.65326782]
[1726867937026,0.382,2552.4,2552.3,1.80174]
[1726867939914,0.382,2552.4,2552.3,2.82442309]
[1726867945025,0.382,2552.4,2552.3,3.11762039]
[1726867945630,0.382,2552.4,2552.3,4.65149272]
[1726867945832,0.382,2552.4,2552.3,3.11762039]
[1726867947733,0.382,2552.4,2552.3,5.16596483]
[1726867948329,0.382,2552.4,2552.3,7.79745913]
[1726867948529,0.382,2552.4,2552.3,5.16596483]
[1726867948730,0.382,2552.4,2552.3,5.16577288]
[1726867950936,0.7927,2552.5,2552.4,0.39172]
[1726867951133,0.7927,2552.5,2552.4,3.24098044]
[1726867952037,0.7927,2552.5,2552.4,1.41416047]
[1726867954230,1.1898,2552.5,2552.4,1.41416047]
[1726867955439,1.58151,2552.5,2552.4,1.41416047]
[1726867956831,1.1898,2552.5,2552.4,1.41416047]
[1726867957031,1.58151,2552.5,2552.4,1.02244047]
[1726867957231,1.1898,2552.5,2552.4,1.41416047]
[1726867958436,1.58151,2552.5,2552.4,1.41416047]
[1726867960246,1.58151,2552.5,2552.4,3.24083009]
[1726867963347,1.58151,2552.5,2552.4,6.44823726]
[1726867964243,1.58151,2552.5,2552.4,3.24043726]
[1726867964443,1.58151,2552.5,2552.4,6.44823726]
[1726867967142,1.58151,2552.5,2552.4,4.62294023]
[1726867968654,1.58151,2552.5,2552.4,5.93843367]
[1726867969054,1.58151,2552.5,2552.4,4.62294023]
[1726867969552,1.58151,2552.5,2552.4,5.9385416]
[1726867970748,1.58151,2552.5,2552.4,2.7307416]
[1726867970951,1.58151,2552.5,2552.4,5.9385416]
[1726867971545,1.58151,2552.5,2552.4,6.44869337]
[1726867972255,1.58151,2552.5,2552.4,4.91512137]
[1726867972456,1.58151,2552.5,2552.4,6.44869337]
[1726867973155,1.58151,2552.5,2552.4,6.4490713]
[1726867973455,1.58151,2552.5,2552.4,6.98836309]
[1726867975252,1.58151,2552.5,2552.4,10.13579996]
[1726867976250,1.58151,2552.5,2552.4,6.92799996]
[1726867976457,1.58151,2552.5,2552.4,10.13579996]
[1726867977358,1.58151,2552.5,2552.4,9.59650817]
[1726867977863,1.58151,2552.5,2552.4,12.94214782]
[1726867979153,1.58151,2552.5,2552.4,9.73434782]
[1726867979353,1.58151,2552.5,2552.4,12.94214782]
[1726867981654,1.58151,2552.5,2552.4,12.94259884]
[1726867982955,1.58151,2552.5,2552.4,12.40301988]
[1726867983258,1.58151,2552.5,2552.4,12.94271347]
[1726867985258,1.58151,2552.5,2552.4,9.74599347]
[1726867986258,2.0471277,2552.7,2552.6,0.39169]
[1726867986460,0.39167,2552.8,2552.6,12.47484032]
[1726867986659,0.7684,2552.7,2552.6,7.16771438]
[1726867986859,0.7684,2552.7,2552.6,16.20440262]
[1726867987164,0.77784,2553.0,2552.6,15.74259611]
[1726867987356,0.412,2552.9,2552.8,1.80165]
[1726867987560,0.412,2552.9,2552.8,13.4115008]
[1726867987864,0.412,2552.9,2552.8,15.2131608]
[1726867988061,0.412,2552.9,2552.8,14.34980543]
[1726867988264,0.412,2552.9,2552.8,13.81019341]
[1726867988571,0.412,2552.9,2552.8,11.1777709]
[1726867989363,0.412,2552.9,2552.8,10.66565734]
[1726867989669,0.412,2552.9,2552.8,9.13067125]
[1726867990569,0.412,2552.9,2552.8,10.15362945]
[1726867991261,0.412,2552.9,2552.8,10.15203588]
[1726867991661,0.80365,2552.9,2552.8,5.6407582]
[1726867991863,0.80365,2552.9,2552.8,7.4228]
[1726867992260,2.0471277,2553.1,2552.9,0.39164]
[1726867992470,0.7638,2552.9,2552.8,7.4274182]
[1726867992764,0.7638,2552.9,2552.8,8.74161776]
[1726867992965,0.7638,2552.9,2552.8,7.4274182]
[1726867993763,0.7638,2552.9,2552.8,8.7414068]
[1726867994371,0.7638,2552.9,2552.8,8.74074096]
[1726867994762,2.05270034,2553.7,2553.1,3.2078]
[1726867994981,0.0095,2554.4,2553.6,4.6178]
[1726867995264,0.4049,2554.4,2554.2,1.02058603]
[1726867995568,0.3857,2554.3,2554.0,3.2078]
[1726867995873,4.69234,2554.3,2554.0,3.2078]
[1726867996069,3.9152,2554.2,2554.0,3.2078]
[1726867996259,0.3857,2554.3,2554.0,4.6178]
[1726867996866,4.30666,2554.2,2553.8,1.02058603]
[1726867997065,4.30666,2554.2,2553.7,4.6178]
[1726867997066,0.39146,2554.2,2553.7,4.6178]
[1726867997265,4.3009,2554.3,2553.7,4.6178]
[1726867997266,0.39147,2554.1,2553.7,4.6178]
[1726867997565,0.79639,2554.0,2553.7,4.6178]
[1726867997766,0.4049,2554.0,2553.6,1.02058603]
[1726867997967,4.3018,2553.9,2553.6,1.02058603]
[1726867998168,5.0706,2553.9,2553.6,1.02058603]
[1726867998378,3.916,2553.8,2553.6,1.02058603]
[1726867998870,3.916,2553.7,2553.6,1.02058603]
[1726867999065,3.916,2553.8,2553.6,1.02058603]
[1726867999474,3.916,2553.7,2553.6,1.02058603]
[1726867999667,3.916,2553.8,2553.6,1.02058603]
[1726868000068,3.916,2553.7,2553.6,1.02058603]
[1726868000266,3.916,2553.8,2553.6,1.02058603]
[1726868000772,0.7631,2553.9,2553.5,1.41]
[1726868000773,3.916,2553.7,2553.5,1.41]
[1726868000968,0.3913,2553.6,2553.5,1.41]
[1726868002073,0.3913,2553.6,2553.5,1.80156]
[1726868002768,0.3913,2553.6,2553.5,1.41]
[1726868003366,0.3913,2553.6,2553.5,1.80156]
[1726868006569,0.7631,2553.9,2553.5,1.41]
[1726868006770,0.7631,2553.9,2553.8,4.6178]
[1726868007462,0.7631,2553.9,2553.8,5.00931]
[1726868011176,0.17554118,2553.9,2553.8,5.00931]
[1726868011376,0.4089,2554.4,2554.0,0.39148]
[1726868011572,0.39144,2554.3,2554.1,4.6178]
[1726868014480,0.7728,2554.2,2554.1,4.6178]
[1726868014776,0.7728,2554.2,2554.1,5.00926]
[1726868015183,0.7728,2554.2,2554.1,4.6178]
[1726868015366,0.7728,2554.2,2554.1,5.00926]
[1726868015569,0.7728,2554.2,2554.1,4.6178]
[1726868016075,0.7728,2554.2,2554.1,5.00926]
[1726868016377,0.7728,2554.2,2554.1,4.6178]
[1726868016581,10.688,2554.2,2553.8,3.2078]
[1726868016875,0.39159,2553.3,2553.2,0.275]
[1726868017067,0.3916,2553.2,2553.1,1.41]
[1726868017486,4.3084,2553.2,2553.1,1.41]
[1726868017871,3.9168,2553.2,2553.1,1.41]
[1726868018171,4.3084,2553.2,2553.1,1.41]
[1726868019673,4.3084,2553.2,2552.5,3.8569]
[1726868019674,9.9168,2553.2,2552.5,3.8569]
[1726868019883,0.39165,2552.9,2552.7,1.41]
[1726868020677,0.4073,2553.1,2552.8,3.2078]
[1726868020884,3.2078,2553.4,2553.1,0.39161]
[1726868021086,3.59938,2553.4,2553.3,1.41]
[1726868022680,4.0093,2553.7,2553.3,1.41]
[1726868023283,0.39156,2553.5,2553.3,1.41]
[1726868024785,0.39155,2553.6,2553.3,1.41]
[1726868025291,0.39156,2553.5,2553.3,1.7963]
[1726868025493,0.39155,2553.6,2553.3,1.7963]
[1726868025686,4.0093,2553.7,2553.3,1.7963]
[1726868025983,0.39156,2553.5,2553.3,1.7963]
[1726868028190,0.39157,2553.4,2553.3,1.7963]
[1726868029079,4.0093,2553.7,2553.3,1.7963]
[1726868029080,0.39156,2553.5,2553.3,1.7963]
[1726868029287,0.39157,2553.4,2553.3,1.41]
[1726868029883,0.97897,2553.3,2552.8,4.59093304]
[1726868030087,0.97913,2552.9,2552.5,0.366]
[1726868030286,0.97913,2552.9,2552.4,1.80172]
[1726868030287,0.39169,2552.7,2552.4,1.80172]
[1726868030489,0.3833,2552.6,2552.4,1.80172]
[1726868030684,0.3833,2552.6,2552.5,0.39171]
[1726868030876,0.3833,2552.6,2552.4,1.80172]
[1726868031282,0.3833,2552.6,2552.4,1.41]
[1726868031491,4.3009,2552.6,2552.1,1.01713304]
[1726868031788,0.39176,2552.2,2552.0,0.79218]
[1726868032189,0.39176,2552.2,2552.1,1.41]
[1726868033989,0.39177,2552.1,2552.0,0.39178]
[1726868034194,0.39177,2552.1,2552.0,1.80179]
[1726868034394,0.39176,2552.2,2552.0,1.80179]
[1726868035296,0.39177,2552.1,2552.0,1.41]
[1726868036493,0.39177,2552.1,2552.0,1.80179]
[1726868036800,4.31017,2552.1,2552.0,1.80179]
[1726868037295,4.31017,2552.1,2552.0,0.39179]
[1726868037486,4.31017,2552.1,2551.9,3.59959]
[1726868037687,0.39177,2552.1,2551.9,3.59959]
[1726868038091,0.39176,2552.2,2552.0,0.39179]
[1726868038402,0.39178,2552.1,2551.9,3.2078]
[1726868039493,0.39178,2552.1,2552.0,0.39179]
[1726868040297,0.39177,2552.2,2552.0,0.39179]
[1726868040494,0.3792,2552.3,2551.9,3.5996]
[1726868040495,0.39178,2552.1,2551.9,3.5996]